fUST/lending_fUST_20260501
["ID","MTS","AMOUNT","RATE_DAILY","PERIOD"]
[421415666,1777603832000,-1.0511291,0.00013699,2]
[421415665,1777603832000,-305.668248,0.00013699,2]
[421415667,1777603832000,-300.0,0.0001397,2]
[421415668,1777603832000,-96.86404661,0.00013971,2]
[421415658,1777603832000,-357.09338789,0.00013698,2]
[421415706,1777603838000,-175.0,0.00018,2]
[421415700,1777603838000,-537.6845,0.00017844,2]
[421415696,1777603838000,-246.91957498,0.00016703,2]
[421415697,1777603838000,-500.0,0.00017,2]
[421415701,1777603838000,-6814.49446313,0.00017844,2]
[421415699,1777603838000,-500.0,0.00017832,2]
[421415704,1777603838000,-319.63849358,0.00017964,2]
[421415705,1777603838000,-194.33729793,0.00018,2]
[421415711,1777603838000,-644.79446246,0.00018119,2]
[421415715,1777603838000,-441.10262702,0.00018229,2]
[421415716,1777603838000,-500.0,0.00018239,7]
[421415717,1777603838000,-500.0,0.00018239,7]
[421415708,1777603838000,-599.60298507,0.00018009,2]
[421415714,1777603838000,-175.0,0.000182,2]
[421415712,1777603838000,-668.65185757,0.00018174,2]
[421415698,1777603838000,-160.0,0.0001705,2]
[421415709,1777603838000,-471.0,0.0001805,2]
[421415707,1777603838000,-192.21713226,0.00018,2]
[421415694,1777603838000,-850.0377052,0.000161,2]
[421415713,1777603838000,-194.33729793,0.000182,2]
[421415693,1777603838000,-180.54745939,0.00015461,2]
[421415677,1777603838000,-203.13595339,0.00013971,2]
[421415679,1777603838000,-300.0,0.00013971,2]
[421415680,1777603838000,-300.0,0.00013971,2]
[421415687,1777603838000,-300.0,0.00013971,2]
[421415688,1777603838000,-300.0,0.00013971,2]
[421415678,1777603838000,-300.0,0.00013971,2]
[421415689,1777603838000,-300.0,0.00013971,2]
[421415684,1777603838000,-300.0,0.00013971,2]
[421415691,1777603838000,-300.0,0.00013971,2]
[421415686,1777603838000,-300.0,0.00013971,2]
[421415681,1777603838000,-300.0,0.00013971,2]
[421415685,1777603838000,-300.0,0.00013971,2]
[421415710,1777603838000,-621.78829552,0.00018064,2]
[421415690,1777603838000,-300.0,0.00013971,2]
[421415692,1777603838000,-214.239043,0.00014703,2]
[421415703,1777603838000,-578.20924308,0.00017954,2]
[421415695,1777603838000,-177.986492,0.00016325,2]
[421415702,1777603838000,-557.5788265,0.00017899,2]
[421415682,1777603838000,-300.0,0.00013971,2]
[421415683,1777603838000,-300.0,0.00013971,2]
[421415718,1777603838000,-500.0,0.00018239,7]
[421415730,1777603838000,-319.63849353,0.00018241,2]
[421415744,1777603838000,-500.0,0.00018611,2]
[421415743,1777603838000,-500.0,0.00018611,2]
[421415746,1777603838000,-500.0,0.00018611,2]
[421415745,1777603838000,-500.0,0.00018611,2]
[421415748,1777603838000,-185.53000975,0.00018611,2]
[421415747,1777603838000,-500.0,0.00018611,2]
[421415750,1777603838000,-500.0,0.00018611,2]
[421415749,1777603838000,-500.0,0.00018611,2]
[421415719,1777603838000,-500.0,0.00018239,7]
[421415751,1777603838000,-500.0,0.00018611,2]
[421415758,1777603838000,-500.0,0.00018611,2]
[421415753,1777603838000,-500.0,0.00018611,2]
[421415756,1777603838000,-500.0,0.00018611,2]
[421415754,1777603838000,-500.0,0.00018611,2]
[421415760,1777603838000,-500.0,0.00018611,2]
[421415755,1777603838000,-500.0,0.00018611,2]
[421415757,1777603838000,-500.0,0.00018611,2]
[421415759,1777603838000,-500.0,0.00018611,2]
[421415752,1777603838000,-500.0,0.00018611,2]
[421415742,1777603838000,-500.0,0.00018611,2]
[421415740,1777603838000,-319.63849353,0.00018517,2]
[421415739,1777603838000,-175.0,0.000185,2]
[421415722,1777603838000,-500.0,0.00018239,7]
[421415721,1777603838000,-500.0,0.00018239,7]
[421415720,1777603838000,-500.0,0.00018239,7]
[421415729,1777603838000,-356.68058654,0.00018239,7]
[421415727,1777603838000,-500.0,0.00018239,7]
[421415731,1777603838000,-374.143,0.00018244,2]
[421415741,1777603838000,-500.0,0.00018544,2]
[421415725,1777603838000,-500.0,0.00018239,7]
[421415728,1777603838000,-500.0,0.00018239,7]
[421415723,1777603838000,-500.0,0.00018239,7]
[421415724,1777603838000,-500.0,0.00018239,7]
[421415732,1777603838000,-194.33729793,0.000184,2]
[421415733,1777603838000,-175.0,0.000184,2]
[421415734,1777603838000,-607.92487541,0.00018424,2]
[421415737,1777603838000,-185.0,0.00018498,2]
[421415736,1777603838000,-619.55938955,0.00018459,2]
[421415738,1777603838000,-194.33729793,0.000185,2]
[421415735,1777603838000,-1741.66750126,0.00018459,2]
[421415726,1777603838000,-500.0,0.00018239,7]
[421415770,1777603839000,-336337.4645181,0.00018614,2]
[421415763,1777603839000,-500.0,0.00018611,2]
[421415762,1777603839000,-500.0,0.00018611,2]
[421415761,1777603839000,-500.0,0.00018611,2]
[421415764,1777603839000,-500.0,0.00018611,2]
[421415765,1777603839000,-500.0,0.00018611,2]
[421415773,1777603839000,-10373.92150916,0.00018614,2]
[421415767,1777603839000,-500.0,0.00018611,2]
[421415769,1777603839000,-176.94998597,0.00018613,2]
[421415768,1777603839000,-243.39760871,0.00018613,2]
[421415771,1777603839000,-37800.00722332,0.00018614,2]
[421415772,1777603839000,-3191.72976468,0.00018614,2]
[421415766,1777603839000,-355.26954294,0.00018611,2]
[421415799,1777603846000,-152.0,0.00018116,7]
[421415798,1777603846000,-152.0,0.00018116,7]
[421415800,1777603846000,-152.0,0.00018134,7]
[421415802,1777603846000,-405.28325027,0.00018424,2]
[421415801,1777603846000,-152.0,0.00018134,7]
[421415804,1777603846000,-178.49418131,0.00018614,2]
[421415803,1777603846000,-5000.0,0.00018428,2]
[421415825,1777604846000,1119.0178,0.00021918,120]
[421415867,1777605032000,-260.96869793,0.00012142,2]
[421415865,1777605032000,-2581.36439249,0.00012142,2]
[421415874,1777605032000,-1325.57172577,0.00012142,2]
[421415872,1777605032000,-763.77151649,0.00012142,2]
[421415930,1777605038000,-500.0,0.00013971,2]
[421415927,1777605038000,-580.46239662,0.00013971,2]
[421415929,1777605038000,-500.0,0.00013971,2]
[421415932,1777605038000,-500.0,0.00013971,2]
[421415925,1777605038000,-376.01761499,0.00013871,2]
[421415943,1777605038000,-300.0,0.00013972,2]
[421415921,1777605038000,-185.88330475,0.00012452,2]
[421415922,1777605038000,-1223.0,0.00013627,2]
[421415924,1777605038000,-1000.0,0.00013699,2]
[421415919,1777605038000,-300.0,0.00012451,2]
[421415923,1777605038000,-420.0,0.00013661,2]
[421415920,1777605038000,-300.0,0.00012451,2]
[421415931,1777605038000,-500.0,0.00013971,2]
[421415916,1777605038000,-1200.0,0.00012388,2]
[421415917,1777605038000,-300.0,0.0001245,2]
[421415915,1777605038000,-4247.33131532,0.00012265,2]
[421415914,1777605038000,-752.66868468,0.00012265,2]
[421415918,1777605038000,-300.0,0.00012451,2]
[421415913,1777605038000,-68.32366732,0.00012142,2]
[421415926,1777605038000,-9663.59894266,0.00013971,2]
[421415942,1777605038000,-300.0,0.00013972,2]
[421415928,1777605038000,-11753.30311564,0.00013971,2]
[421415934,1777605038000,-500.0,0.00013971,2]
[421415936,1777605038000,-599.93488824,0.00013971,2]
[421415956,1777605038000,-219.3422996,0.00014452,2]
[421415957,1777605038000,-376.01761494,0.00014771,2]
[421415955,1777605038000,-600.0,0.0001425,2]
[421415954,1777605038000,-198.45061863,0.00014065,2]
[421415949,1777605038000,-300.0,0.00013972,2]
[421415947,1777605038000,-300.0,0.00013972,2]
[421415952,1777605038000,-300.0,0.00013972,2]
[421415953,1777605038000,-300.0,0.00013972,2]
[421415950,1777605038000,-300.0,0.00013972,2]
[421415951,1777605038000,-300.0,0.00013972,2]
[421415948,1777605038000,-300.0,0.00013972,2]
[421415946,1777605038000,-300.0,0.00013972,2]
[421415944,1777605038000,-300.0,0.00013972,2]
[421415941,1777605038000,-300.0,0.00013972,2]
[421415933,1777605038000,-500.0,0.00013971,2]
[421415938,1777605038000,-500.0,0.00013971,2]
[421415940,1777605038000,-300.0,0.00013972,2]
[421415935,1777605038000,-500.0,0.00013971,2]
[421415937,1777605038000,-500.0,0.00013971,2]
[421415945,1777605038000,-300.0,0.00013972,2]
[421415939,1777605038000,-300.0,0.00013972,2]
[421415986,1777605039000,-500.0,0.00017843,2]
[421416000,1777605039000,-187.899,0.00018301,2]
[421415994,1777605039000,-543.00336456,0.00018008,2]
[421415997,1777605039000,-612.9484825,0.0001807,2]
[421415995,1777605039000,-513.07982557,0.00018008,2]
[421415996,1777605039000,-599.60298507,0.00018015,2]
[421415983,1777605039000,-500.0,0.00017832,2]
[421415993,1777605039000,-306.59791693,0.00018,2]
[421415989,1777605039000,-578.20924308,0.0001785,2]
[421415990,1777605039000,-2150.738,0.0001785,2]
[421415998,1777605039000,-162.63743379,0.00018239,7]
[421416004,1777605039000,-462.49125065,0.00018424,2]
[421415999,1777605039000,-297.02515715,0.00018301,2]
[421416009,1777605039000,-185.0,0.00018498,2]
[421416001,1777605039000,-376.01761494,0.00018372,2]
[421416002,1777605039000,-162.09897232,0.00018398,2]
[421416006,1777605039000,-2234.308,0.00018498,2]
[421416008,1777605039000,-652.935,0.00018498,2]
[421416016,1777605039000,-500.0,0.00018513,2]
[421416017,1777605039000,-500.0,0.00018513,2]
[421416007,1777605039000,-1420.788,0.00018498,2]
[421415987,1777605039000,-387.55219778,0.0001785,2]
[421416005,1777605039000,-286.26028931,0.00018452,2]
[421416012,1777605039000,-277.11702369,0.000185,2]
[421416011,1777605039000,-192.48029965,0.000185,2]
[421416010,1777605039000,-262.02344025,0.000185,2]
[421416015,1777605039000,-292.85146777,0.00018512,2]
[421416003,1777605039000,-500.0,0.00018399,2]
[421415988,1777605039000,-537.6845,0.0001785,2]
[421416026,1777605039000,-151.0,0.00018514,2]
[421415982,1777605039000,-1196.32,0.00017832,2]
[421416014,1777605039000,-151.0,0.000185,2]
[421415965,1777605039000,-500.0,0.00017242,2]
[421415958,1777605039000,-376.01761494,0.00015672,2]
[421415964,1777605039000,-500.0,0.00017242,2]
[421415960,1777605039000,-217.344168,0.00016,2]
[421415962,1777605039000,-376.01761494,0.00016572,2]
[421415959,1777605039000,-720.0,0.00015675,2]
[421415963,1777605039000,-514.02398962,0.00017242,2]
[421415961,1777605039000,-252.80129445,0.00016452,2]
[421415966,1777605039000,-500.0,0.00017242,2]
[421415971,1777605039000,-525.21643237,0.00017242,2]
[421415969,1777605039000,-500.0,0.00017242,2]
[421415968,1777605039000,-610.51666348,0.00017242,2]
[421415984,1777605039000,-500.0,0.00017843,2]
[421415977,1777605039000,-376.01761494,0.00017472,2]
[421415976,1777605039000,-864.0,0.00017243,2]
[421415972,1777605039000,-500.0,0.00017242,2]
[421415973,1777605039000,-500.0,0.00017242,2]
[421415967,1777605039000,-467.54473287,0.00017242,2]
[421415978,1777605039000,-4804.33692883,0.00017732,2]
[421415970,1777605039000,-500.0,0.00017242,2]
[421415975,1777605039000,-500.0,0.00017242,2]
[421415979,1777605039000,-511.49,0.00017832,2]
[421415980,1777605039000,-500.0,0.00017832,2]
[421415985,1777605039000,-500.0,0.00017843,2]
[421415991,1777605039000,-557.5788265,0.00017905,2]
[421415992,1777605039000,-578.20924308,0.0001796,2]
[421415981,1777605039000,-500.0,0.00017832,2]
[421415974,1777605039000,-500.0,0.00017242,2]
[421416013,1777605039000,-285.9426199,0.000185,2]
[421416044,1777605039000,-151.0,0.000186,2]
[421416029,1777605039000,-533.083131,0.00018514,2]
[421416056,1777605039000,-500.0,0.00018613,2]
[421416058,1777605039000,-500.0,0.00018613,2]
[421416049,1777605039000,-500.0,0.00018613,2]
[421416057,1777605039000,-500.0,0.00018613,2]
[421416046,1777605039000,-500.0,0.00018613,2]
[421416050,1777605039000,-500.0,0.00018613,2]
[421416051,1777605039000,-500.0,0.00018613,2]
[421416062,1777605039000,-1000.0,0.00018614,2]
[421416059,1777605039000,-546.94169277,0.00018613,2]
[421416071,1777605039000,-1000.0,0.00018614,2]
[421416060,1777605039000,-1000.0,0.00018614,2]
[421416061,1777605039000,-1000.0,0.00018614,2]
[421416068,1777605039000,-1000.0,0.00018614,2]
[421416069,1777605039000,-1000.0,0.00018614,2]
[421416063,1777605039000,-1000.0,0.00018614,2]
[421416065,1777605039000,-1000.0,0.00018614,2]
[421416066,1777605039000,-1000.0,0.00018614,2]
[421416064,1777605039000,-1000.0,0.00018614,2]
[421416067,1777605039000,-1000.0,0.00018614,2]
[421416072,1777605039000,-1000.0,0.00018614,2]
[421416075,1777605039000,-151.39515132,0.00018614,2]
[421416076,1777605039000,-151.0,0.00018614,2]
[421416074,1777605039000,-151.0,0.00018614,2]
[421416073,1777605039000,-763.79174468,0.00018614,2]
[421416078,1777605039000,-533.083131,0.00018614,2]
[421416077,1777605039000,-533.083131,0.00018614,2]
[421416019,1777605039000,-500.0,0.00018513,2]
[421416054,1777605039000,-500.0,0.00018613,2]
[421416053,1777605039000,-500.0,0.00018613,2]
[421416070,1777605039000,-1000.0,0.00018614,2]
[421416055,1777605039000,-500.0,0.00018613,2]
[421416030,1777605039000,-533.083131,0.00018514,2]
[421416052,1777605039000,-500.0,0.00018613,2]
[421416018,1777605039000,-500.0,0.00018513,2]
[421416024,1777605039000,-174.852573,0.00018514,2]
[421416025,1777605039000,-153.174218,0.00018514,2]
[421416021,1777605039000,-354.83841601,0.00018513,2]
[421416022,1777605039000,-160.25838275,0.00018513,2]
[421416020,1777605039000,-500.0,0.00018513,2]
[421416023,1777605039000,-151.0,0.00018514,2]
[421416027,1777605039000,-177.895671,0.00018514,2]
[421416032,1777605039000,-1508.0,0.0001852,2]
[421416042,1777605039000,-1196.32,0.00018544,2]
[421416043,1777605039000,-500.0,0.00018544,2]
[421416079,1777605039000,-533.083131,0.00018614,2]
[421416028,1777605039000,-533.083131,0.00018514,2]
[421416048,1777605039000,-500.0,0.00018613,2]
[421416031,1777605039000,-533.083131,0.00018514,2]
[421416045,1777605039000,-151.0,0.000186,2]
[421416037,1777605039000,-1233.7663739,0.00018531,2]
[421416040,1777605039000,-500.0,0.00018544,2]
[421416047,1777605039000,-500.0,0.00018613,2]
[421416034,1777605039000,-218.18356684,0.0001853,2]
[421416039,1777605039000,-511.49,0.00018544,2]
[421416033,1777605039000,-170.3783261,0.0001853,2]
[421416038,1777605039000,-201.18389491,0.00018531,2]
[421416036,1777605039000,-19780.597978,0.00018531,2]
[421416041,1777605039000,-500.0,0.00018544,2]
[421416035,1777605039000,-2456.2953428,0.00018531,2]
[421416118,1777605040000,-155.0,0.00018706,2]
[421416120,1777605040000,-166.0,0.00018707,2]
[421416122,1777605040000,-166.0,0.00018707,2]
[421416127,1777605040000,-166.0,0.00018707,2]
[421416119,1777605040000,-166.0,0.00018707,2]
[421416111,1777605040000,-664.87908,0.00018664,2]
[421416126,1777605040000,-264.65414484,0.00018707,2]
[421416115,1777605040000,-151.0,0.000187,2]
[421416110,1777605040000,-664.87908,0.00018664,2]
[421416112,1777605040000,-664.87908,0.00018664,2]
[421416116,1777605040000,-151.0,0.000187,2]
[421416117,1777605040000,-794.0,0.000187,2]
[421416125,1777605040000,-649.0,0.00018707,2]
[421416138,1777605040000,-156.0,0.00018707,2]
[421416121,1777605040000,-166.0,0.00018707,2]
[421416124,1777605040000,-167.0,0.00018707,2]
[421416129,1777605040000,-649.0,0.00018707,2]
[421416141,1777605040000,-341.0,0.00018707,2]
[421416139,1777605040000,-649.0,0.00018707,2]
[421416128,1777605040000,-649.0,0.00018707,2]
[421416131,1777605040000,-649.0,0.00018707,2]
[421416130,1777605040000,-156.0,0.00018707,2]
[421416132,1777605040000,-156.0,0.00018707,2]
[421416137,1777605040000,-341.0,0.00018707,2]
[421416134,1777605040000,-341.0,0.00018707,2]
[421416133,1777605040000,-649.0,0.00018707,2]
[421416109,1777605040000,-664.87908,0.00018664,2]
[421416123,1777605040000,-649.0,0.00018707,2]
[421416106,1777605040000,-550.601897,0.00018664,2]
[421416080,1777605040000,-533.083131,0.00018614,2]
[421416107,1777605040000,-550.601897,0.00018664,2]
[421416088,1777605040000,-414.854929,0.00018658,2]
[421416135,1777605040000,-156.0,0.00018707,2]
[421416081,1777605040000,-196522.0944185,0.0001862,2]
[421416083,1777605040000,-152.0,0.00018658,7]
[421416082,1777605040000,-152.0,0.00018658,7]
[421416086,1777605040000,-890.500734,0.00018658,2]
[421416085,1777605040000,-890.500734,0.00018658,2]
[421416084,1777605040000,-890.500734,0.00018658,2]
[421416087,1777605040000,-890.500734,0.00018658,2]
[421416089,1777605040000,-414.854929,0.00018658,2]
[421416099,1777605040000,-395.964286,0.00018664,2]
[421416094,1777605040000,-5821.4141991,0.00018664,2]
[421416092,1777605040000,-151.0,0.00018658,2]
[421416105,1777605040000,-550.601897,0.00018664,2]
[421416093,1777605040000,-167.232761,0.00018658,2]
[421416091,1777605040000,-414.854929,0.00018658,2]
[421416095,1777605040000,-250.319444,0.00018664,2]
[421416097,1777605040000,-395.964286,0.00018664,2]
[421416098,1777605040000,-395.964286,0.00018664,2]
[421416101,1777605040000,-465.468289,0.00018664,2]
[421416100,1777605040000,-154.008803,0.00018664,2]
[421416090,1777605040000,-414.854929,0.00018658,2]
[421416103,1777605040000,-465.468289,0.00018664,2]
[421416113,1777605040000,-152.0,0.00018677,7]
[421416102,1777605040000,-465.468289,0.00018664,2]
[421416114,1777605040000,-152.0,0.00018677,7]
[421416104,1777605040000,-465.468289,0.00018664,2]
[421416108,1777605040000,-550.601897,0.00018664,2]
[421416096,1777605040000,-395.964286,0.00018664,2]
[421416136,1777605040000,-649.0,0.00018707,2]
[421416168,1777605040000,-181.40171647,0.00018707,2]
[421416145,1777605040000,-341.0,0.00018707,2]
[421416191,1777605040000,-649.0,0.00018707,2]
[421416180,1777605040000,-649.0,0.00018707,2]
[421416190,1777605040000,-649.0,0.00018707,2]
[421416181,1777605040000,-649.0,0.00018707,2]
[421416144,1777605040000,-649.0,0.00018707,2]
[421416182,1777605040000,-649.0,0.00018707,2]
[421416183,1777605040000,-649.0,0.00018707,2]
[421416188,1777605040000,-649.0,0.00018707,2]
[421416187,1777605040000,-649.0,0.00018707,2]
[421416184,1777605040000,-649.0,0.00018707,2]
[421416189,1777605040000,-649.0,0.00018707,2]
[421416185,1777605040000,-649.0,0.00018707,2]
[421416186,1777605040000,-649.0,0.00018707,2]
[421416174,1777605040000,-649.0,0.00018707,2]
[421416196,1777605040000,-649.0,0.00018707,2]
[421416194,1777605040000,-649.0,0.00018707,2]
[421416195,1777605040000,-649.0,0.00018707,2]
[421416197,1777605040000,-649.0,0.00018707,2]
[421416203,1777605040000,-649.0,0.00018707,2]
[421416200,1777605040000,-649.0,0.00018707,2]
[421416204,1777605040000,-649.0,0.00018707,2]
[421416202,1777605040000,-649.0,0.00018707,2]
[421416199,1777605040000,-649.0,0.00018707,2]
[421416198,1777605040000,-649.0,0.00018707,2]
[421416193,1777605040000,-649.0,0.00018707,2]
[421416201,1777605040000,-649.0,0.00018707,2]
[421416206,1777605040000,-330.17816312,0.00018707,2]
[421416205,1777605040000,-649.0,0.00018707,2]
[421416192,1777605040000,-649.0,0.00018707,2]
[421416172,1777605040000,-649.0,0.00018707,2]
[421416179,1777605040000,-649.0,0.00018707,2]
[421416176,1777605040000,-301.20736845,0.00018707,2]
[421416146,1777605040000,-341.0,0.00018707,2]
[421416143,1777605040000,-156.0,0.00018707,2]
[421416147,1777605040000,-649.0,0.00018707,2]
[421416154,1777605040000,-156.0,0.00018707,2]
[421416151,1777605040000,-156.0,0.00018707,2]
[421416153,1777605040000,-341.0,0.00018707,2]
[421416150,1777605040000,-649.0,0.00018707,2]
[421416173,1777605040000,-649.0,0.00018707,2]
[421416149,1777605040000,-341.0,0.00018707,2]
[421416152,1777605040000,-649.0,0.00018707,2]
[421416156,1777605040000,-341.0,0.00018707,2]
[421416166,1777605040000,-179.0,0.00018707,2]
[421416165,1777605040000,-649.0,0.00018707,2]
[421416155,1777605040000,-649.0,0.00018707,2]
[421416148,1777605040000,-156.0,0.00018707,2]
[421416157,1777605040000,-154.59292773,0.00018707,2]
[421416164,1777605040000,-179.0,0.00018707,2]
[421416171,1777605040000,-649.0,0.00018707,2]
[421416175,1777605040000,-649.0,0.00018707,2]
[421416177,1777605040000,-649.0,0.00018707,2]
[421416167,1777605040000,-649.0,0.00018707,2]
[421416169,1777605040000,-649.0,0.00018707,2]
[421416170,1777605040000,-649.0,0.00018707,2]
[421416162,1777605040000,-649.0,0.00018707,2]
[421416160,1777605040000,-649.0,0.00018707,2]
[421416163,1777605040000,-649.0,0.00018707,2]
[421416159,1777605040000,-163.66530983,0.00018707,2]
[421416161,1777605040000,-649.0,0.00018707,2]
[421416178,1777605040000,-649.0,0.00018707,2]
[421416254,1777605041000,-465.468289,0.00018707,2]
[421416236,1777605041000,-555.904341,0.00018707,2]
[421416246,1777605041000,-315.542026,0.00018707,2]
[421416251,1777605041000,-167.945347,0.00018707,2]
[421416248,1777605041000,-315.542026,0.00018707,2]
[421416239,1777605041000,-555.904341,0.00018707,2]
[421416249,1777605041000,-315.542026,0.00018707,2]
[421416237,1777605041000,-555.904341,0.00018707,2]
[421416241,1777605041000,-315.542026,0.00018707,2]
[421416240,1777605041000,-315.542026,0.00018707,2]
[421416238,1777605041000,-555.904341,0.00018707,2]
[421416252,1777605041000,-465.468289,0.00018707,2]
[421416253,1777605041000,-465.468289,0.00018707,2]
[421416267,1777605041000,-500.0,0.00018713,2]
[421416256,1777605041000,-550.601897,0.00018707,2]
[421416259,1777605041000,-550.601897,0.00018707,2]
[421416257,1777605041000,-550.601897,0.00018707,2]
[421416258,1777605041000,-550.601897,0.00018707,2]
[421416261,1777605041000,-664.87908,0.00018707,2]
[421416271,1777605041000,-500.0,0.00018713,2]
[421416260,1777605041000,-664.87908,0.00018707,2]
[421416263,1777605041000,-664.87908,0.00018707,2]
[421416262,1777605041000,-664.87908,0.00018707,2]
[421416264,1777605041000,-511.49,0.00018713,2]
[421416266,1777605041000,-500.0,0.00018713,2]
[421416270,1777605041000,-500.0,0.00018713,2]
[421416255,1777605041000,-465.468289,0.00018707,2]
[421416231,1777605041000,-275.424915,0.00018707,2]
[421416250,1777605041000,-315.542026,0.00018707,2]
[421416233,1777605041000,-555.904341,0.00018707,2]
[421416268,1777605041000,-1196.32,0.00018713,2]
[421416209,1777605041000,-173.182842,0.00018707,2]
[421416207,1777605041000,-173.182842,0.00018707,2]
[421416210,1777605041000,-173.182842,0.00018707,2]
[421416217,1777605041000,-533.083131,0.00018707,2]
[421416216,1777605041000,-533.083131,0.00018707,2]
[421416208,1777605041000,-173.182842,0.00018707,2]
[421416211,1777605041000,-151.0,0.00018707,2]
[421416212,1777605041000,-151.0,0.00018707,2]
[421416213,1777605041000,-263.277719,0.00018707,2]
[421416214,1777605041000,-533.083131,0.00018707,2]
[421416215,1777605041000,-533.083131,0.00018707,2]
[421416220,1777605041000,-395.964286,0.00018707,2]
[421416218,1777605041000,-395.964286,0.00018707,2]
[421416221,1777605041000,-395.964286,0.00018707,2]
[421416223,1777605041000,-890.500734,0.00018707,2]
[421416227,1777605041000,-414.854929,0.00018707,2]
[421416222,1777605041000,-890.500734,0.00018707,2]
[421416226,1777605041000,-414.854929,0.00018707,2]
[421416225,1777605041000,-890.500734,0.00018707,2]
[421416224,1777605041000,-890.500734,0.00018707,2]
[421416219,1777605041000,-395.964286,0.00018707,2]
[421416229,1777605041000,-414.854929,0.00018707,2]
[421416228,1777605041000,-414.854929,0.00018707,2]
[421416230,1777605041000,-151.0,0.00018707,2]
[421416232,1777605041000,-555.904341,0.00018707,2]
[421416242,1777605041000,-315.542026,0.00018707,2]
[421416244,1777605041000,-315.542026,0.00018707,2]
[421416235,1777605041000,-555.904341,0.00018707,2]
[421416234,1777605041000,-555.904341,0.00018707,2]
[421416265,1777605041000,-511.49,0.00018713,2]
[421416272,1777605041000,-1508.0,0.00018794,2]
[421416275,1777605041000,-339.086447,0.00018794,2]
[421416306,1777605041000,-465.468289,0.00018851,2]
[421416308,1777605041000,-550.601897,0.00018851,2]
[421416307,1777605041000,-465.468289,0.00018851,2]
[421416309,1777605041000,-550.601897,0.00018851,2]
[421416310,1777605041000,-550.601897,0.00018851,2]
[421416312,1777605041000,-664.87908,0.00018851,2]
[421416311,1777605041000,-550.601897,0.00018851,2]
[421416313,1777605041000,-664.87908,0.00018851,2]
[421416316,1777605041000,-173.182842,0.00018882,2]
[421416314,1777605041000,-664.87908,0.00018851,2]
[421416318,1777605041000,-173.182842,0.00018882,2]
[421416315,1777605041000,-664.87908,0.00018851,2]
[421416317,1777605041000,-173.182842,0.00018882,2]
[421416305,1777605041000,-465.468289,0.00018851,2]
[421416319,1777605041000,-173.182842,0.00018882,2]
[421416330,1777605041000,-2970.51655262,0.00018883,7]
[421416331,1777605041000,-3089.21861974,0.00018883,7]
[421416332,1777605041000,-511.49,0.00018899,2]
[421416328,1777605041000,-315.542026,0.00018882,2]
[421416327,1777605041000,-315.542026,0.00018882,2]
[421416329,1777605041000,-315.542026,0.00018882,2]
[421416320,1777605041000,-151.0,0.00018882,2]
[421416322,1777605041000,-555.904341,0.00018882,2]
[421416324,1777605041000,-555.904341,0.00018882,2]
[421416323,1777605041000,-555.904341,0.00018882,2]
[421416321,1777605041000,-151.0,0.00018882,2]
[421416325,1777605041000,-555.904341,0.00018882,2]
[421416333,1777605041000,-500.0,0.00018899,2]
[421416326,1777605041000,-315.542026,0.00018882,2]
[421416304,1777605041000,-465.468289,0.00018851,2]
[421416269,1777605041000,-1196.32,0.00018713,2]
[421416301,1777605041000,-414.854929,0.00018851,2]